bitfinex/quotes_BTCUSD_20230405
["timestamp","ask_amount","ask_price","bid_price","bid_amount"]
[1680736794257,0.41793309,28147.0,28146.0,5.65917615]
[1680736794486,0.41793309,28147.0,28146.0,5.83676615]
[1680736797295,0.41793309,28147.0,28146.0,5.68251996]
[1680736797514,0.41811309,28147.0,28146.0,5.68251996]
[1680736797719,0.41811309,28147.0,28146.0,5.83676615]
[1680736797921,0.41793309,28147.0,28146.0,5.83676615]
[1680736798354,0.42893309,28147.0,28146.0,5.83676615]
[1680736799390,0.42899309,28147.0,28146.0,5.83676615]
[1680736799603,0.42911309,28147.0,28146.0,5.83676615]
[1680736800208,0.42893309,28147.0,28146.0,5.83676615]
[1680736801021,0.42893309,28147.0,28146.0,5.65917615]
[1680736803246,0.42893309,28147.0,28146.0,5.76116615]
[1680736803658,0.42893309,28147.0,28146.0,5.58916433]
[1680736804090,0.43993309,28147.0,28146.0,5.42932996]
[1680736804305,0.43993309,28147.0,28146.0,5.60693996]
[1680736805183,0.43993309,28147.0,28146.0,5.42932996]
[1680736805390,0.43993309,28147.0,28146.0,5.76117615]
[1680736806705,0.43993309,28147.0,28146.0,6.04804128]
[1680736806935,0.43993309,28147.0,28146.0,5.76117615]
[1680736807790,0.43993309,28147.0,28146.0,6.03359845]
[1680736808812,0.43993309,28147.0,28146.0,6.03358845]
[1680736809827,0.45093309,28147.0,28146.0,6.03358845]
[1680736812173,0.45093309,28147.0,28146.0,5.85599845]
[1680736812408,0.45093309,28147.0,28146.0,6.03358845]
[1680736813009,0.45111309,28147.0,28146.0,5.87934226]
[1680736813633,0.45093309,28147.0,28146.0,5.87934226]
[1680736813835,0.45093309,28147.0,28146.0,6.03358845]
[1680736814920,0.45093309,28147.0,28146.0,5.83676615]
[1680736815127,0.45093309,28147.0,28146.0,5.65917615]
[1680736815328,0.45093309,28147.0,28146.0,5.83676615]
[1680736815543,0.46193309,28147.0,28146.0,5.83676615]
[1680736819216,0.46193309,28147.0,28146.0,5.65917615]
[1680736821497,0.47293309,28147.0,28146.0,5.83676615]
[1680736823563,0.47293309,28147.0,28146.0,6.24459581]
[1680736823764,0.47293309,28147.0,28146.0,5.69247351]
[1680736824072,0.47299309,28147.0,28146.0,5.87724167]
[1680736824268,0.47311309,28147.0,28146.0,5.87712167]
[1680736824630,0.47311309,28147.0,28146.0,5.87710014]
[1680736825867,0.47311309,28147.0,28146.0,5.59051431]
[1680736826364,0.47311309,28147.0,28146.0,5.87710281]
[1680736826565,0.47311309,28147.0,28146.0,5.59051431]
[1680736826957,0.47311309,28147.0,28146.0,5.87710047]
[1680736827158,0.48411309,28147.0,28146.0,5.87710047]
[1680736827525,0.48411309,28147.0,28146.0,5.59051431]
[1680736827729,0.48411309,28147.0,28146.0,5.87709502]
[1680736829597,0.48411309,28147.0,28146.0,5.59051431]
[1680736829940,0.48411309,28147.0,28146.0,5.41292431]
[1680736830173,0.48411309,28147.0,28146.0,5.69951759]
[1680736830356,0.48411309,28147.0,28146.0,5.41292431]
[1680736831222,0.48411309,28147.0,28146.0,5.87712125]
[1680736831398,0.48411309,28147.0,28146.0,5.87712244]
[1680736831950,0.48411309,28147.0,28146.0,5.59053431]
[1680736832154,0.48411309,28147.0,28146.0,5.87712388]
[1680736832556,0.48411309,28147.0,28146.0,5.87711876]
[1680736832970,0.49511309,28147.0,28146.0,5.87711876]
[1680736833790,0.49511309,28147.0,28146.0,5.72287257]
[1680736835018,0.49511309,28147.0,28146.0,5.43628812]
[1680736835254,0.49511309,28147.0,28146.0,5.59053431]
[1680736836966,0.49511309,28147.0,28146.0,5.87711615]
[1680736837121,0.49511309,28147.0,28146.0,5.59053431]
[1680736838546,0.49511309,28147.0,28146.0,5.59071431]
[1680736838748,0.50611309,28147.0,28146.0,5.59071431]
[1680736838875,0.50611309,28147.0,28146.0,5.59065431]
[1680736839090,0.50611309,28147.0,28146.0,5.87711926]
[1680736839678,0.50611309,28147.0,28146.0,5.69950926]
[1680736839904,0.50611309,28147.0,28146.0,5.87711926]
[1680736840909,0.50611309,28147.0,28146.0,5.69950926]
[1680736841115,0.50611309,28147.0,28146.0,5.54526307]
[1680736841328,0.50611309,28147.0,28146.0,5.72286307]
[1680736841661,0.50611309,28147.0,28146.0,5.54526307]
[1680736841880,0.50611309,28147.0,28146.0,5.72286307]
[1680736842094,0.50611309,28147.0,28146.0,5.59052431]
[1680736844020,0.50611309,28147.0,28146.0,5.59070431]
[1680736844238,0.50611309,28147.0,28146.0,5.59052431]
[1680736844427,0.51711309,28147.0,28146.0,5.59052431]
[1680736844698,0.51711309,28147.0,28146.0,5.87711314]
[1680736844933,0.51711309,28147.0,28146.0,5.72286695]
[1680736845358,0.51711309,28147.0,28146.0,5.43627812]
[1680736845575,0.51711309,28147.0,28146.0,5.72287809]
[1680736845785,0.51711309,28147.0,28146.0,5.43627812]
[1680736846803,0.51711309,28147.0,28146.0,5.25867812]
[1680736847015,0.51711309,28147.0,28146.0,5.43628812]
[1680736847846,0.51711309,28147.0,28146.0,5.25867812]
[1680736848268,0.51711309,28147.0,28146.0,5.43628812]
[1680736848714,0.51711309,28147.0,28146.0,5.43646812]
[1680736849439,0.51711309,28147.0,28146.0,5.43628812]
[1680736850538,0.52811309,28147.0,28146.0,5.43628812]
[1680736851168,0.52811309,28147.0,28146.0,5.47408812]
[1680736852020,0.52811309,28147.0,28146.0,5.29647812]
[1680736852230,0.52811309,28147.0,28146.0,5.47408812]
[1680736854771,0.52811309,28147.0,28146.0,5.7608651]
[1680736854975,0.52811309,28147.0,28146.0,5.7606851]
[1680736856220,0.53911309,28147.0,28146.0,5.7606851]
[1680736856435,0.53911309,28147.0,28146.0,5.7608651]
[1680736857726,0.53911309,28147.0,28146.0,5.76067789]
[1680736857941,0.53911309,28147.0,28146.0,5.47408812]
[1680736861993,0.55011309,28147.0,28146.0,5.47408812]
[1680736862839,0.55011309,28147.0,28146.0,5.47426812]
[1680736863048,0.55011309,28147.0,28146.0,5.76086509]
[1680736863257,0.55011309,28147.0,28146.0,5.47426812]
[1680736864022,0.65011309,28147.0,28146.0,5.62836703]
[1680736865461,0.65011309,28147.0,28146.0,5.62854703]
[1680736866088,0.65011309,28147.0,28146.0,5.62836703]
[1680736867772,0.66111309,28147.0,28146.0,5.62836703]
[1680736867980,0.66111309,28147.0,28146.0,5.914968]
[1680736868425,0.66111309,28147.0,28146.0,5.62836703]
[1680736869795,0.66111309,28147.0,28146.0,5.47408812]
[1680736870003,0.66111309,28147.0,28146.0,5.47303664]
[1680736870231,0.66111309,28147.0,28146.0,5.47198866]
[1680736870650,0.66111309,28147.0,28146.0,5.62644757]
[1680736872230,0.66111309,28147.0,28146.0,5.62626757]
[1680736873425,0.67211309,28147.0,28146.0,5.62626757]
[1680736877360,0.67211309,28147.0,28146.0,5.91289749]
[1680736877775,0.67211309,28147.0,28146.0,5.91307749]
[1680736877975,0.67211309,28147.0,28146.0,5.91295749]
[1680736878183,0.67211309,28147.0,28146.0,5.91289749]
[1680736879087,0.67211309,28147.0,28146.0,5.75861858]
[1680736879306,0.68311309,28147.0,28146.0,5.75861858]
[1680736879521,0.68311309,28147.0,28146.0,5.54320858]
[1680736879967,0.68311309,28147.0,28146.0,5.32980858]
[1680736884942,0.69411309,28147.0,28146.0,5.32980858]
[1680736885811,0.69411309,28147.0,28146.0,5.32998858]
[1680736888057,0.69411309,28147.0,28146.0,5.32980858]
[1680736888910,0.69411309,28147.0,28146.0,5.48408749]
[1680736890726,0.70511309,28147.0,28146.0,5.48408749]
[1680736895058,0.70511309,28147.0,28146.0,5.66170749]
[1680736896315,0.70511309,28147.0,28146.0,5.69950749]
[1680736896619,0.71611309,28147.0,28146.0,5.69950749]
[1680736897263,0.71611309,28147.0,28146.0,5.52188749]
[1680736897522,0.71611309,28147.0,28146.0,5.69950749]
[1680736898287,0.71611309,28147.0,28146.0,5.52188749]
[1680736898522,0.71611309,28147.0,28146.0,5.69950749]
[1680736900399,0.71611309,28147.0,28146.0,5.68175186]
[1680736900675,0.71611309,28147.0,28146.0,5.69950749]
[1680736902183,0.72711309,28147.0,28146.0,5.69950749]
[1680736902398,0.72711309,28147.0,28146.0,5.54522858]
[1680736903033,0.72711309,28147.0,28146.0,5.36760858]
[1680736903259,0.72711309,28147.0,28146.0,5.69950749]
[1680736905142,0.72711309,28147.0,28146.0,5.54522858]
[1680736905554,0.72711309,28147.0,28146.0,5.69950749]
[1680736905868,0.72711309,28147.0,28146.0,5.69968749]
[1680736906077,0.72711309,28147.0,28146.0,5.69950749]
[1680736907837,0.73811309,28147.0,28146.0,5.69950749]
[1680736908283,0.73811309,28147.0,28146.0,5.73730749]
[1680736908505,0.73811309,28147.0,28146.0,5.66407757]
[1680736909158,0.73811309,28147.0,28146.0,5.86089987]
[1680736910008,0.73811309,28147.0,28146.0,5.68327987]
[1680736910232,0.73811309,28147.0,28146.0,5.86085987]
[1680736910414,0.73811309,28147.0,28146.0,5.86103987]
[1680736911307,0.73811309,28147.0,28146.0,5.70676096]
[1680736911521,0.73811309,28147.0,28146.0,5.52918096]
[1680736911733,0.73811309,28147.0,28146.0,5.86104987]
[1680736911940,0.73811309,28147.0,28146.0,6.21634987]
[1680736912488,0.73811309,28147.0,28146.0,6.21616987]
[1680736913622,0.74911309,28147.0,28146.0,6.21616987]
[1680736914012,0.74911309,28147.0,28146.0,6.21634987]
[1680736914214,0.74911309,28147.0,28146.0,6.21527082]
[1680736914423,0.74911309,28147.0,28146.0,6.2141535]
[1680736915638,0.74911309,28147.0,28146.0,6.0365635]
[1680736915878,0.74911309,28147.0,28146.0,6.2141535]
[1680736916510,0.74911309,28147.0,28146.0,6.02416413]
[1680736917211,0.74911309,28147.0,28146.0,5.86988522]
[1680736918026,0.74911309,28147.0,28146.0,5.69229522]
[1680736918232,0.74911309,28147.0,28146.0,6.02416413]
[1680736918883,0.74911309,28147.0,28146.0,5.84675413]
[1680736919100,0.74911309,28147.0,28146.0,6.02416413]
[1680736919504,0.76011309,28147.0,28146.0,6.02416413]
[1680736920177,0.76011309,28147.0,28146.0,5.82734183]
[1680736920840,0.76011309,28147.0,28146.0,5.82735183]
[1680736921844,0.76011309,28147.0,28146.0,5.93614579]
[1680736922256,0.76011309,28147.0,28146.0,5.64975183]
[1680736923005,0.76011309,28147.0,28146.0,5.93614256]
[1680736923218,0.76011309,28147.0,28146.0,5.64975183]
[1680736923978,0.76011309,28147.0,28146.0,5.49547292]
[1680736924206,0.76011309,28147.0,28146.0,5.64975183]
[1680736927068,0.77111309,28147.0,28146.0,5.93614456]
[1680736927469,0.77111309,28147.0,28146.0,5.64975183]
[1680736930072,0.77111309,28147.0,28146.0,5.93614595]
[1680736930307,0.77111309,28147.0,28146.0,5.64975183]
[1680736930538,0.77111309,28147.0,28146.0,5.64981183]
[1680736930755,0.77111309,28147.0,28146.0,5.64975183]
[1680736931386,0.78211309,28147.0,28146.0,5.64975183]
[1680736931589,0.78211309,28147.0,28146.0,5.93618092]
[1680736932897,0.78211309,28147.0,28146.0,5.78190201]
[1680736933327,0.78211309,28147.0,28146.0,5.93618092]
[1680736937196,0.78211309,28147.0,28146.0,6.11378092]
[1680736937412,0.79311309,28147.0,28146.0,5.93618092]
[1680736937619,0.79311309,28147.0,28146.0,6.11378092]
[1680736939049,0.79311309,28147.0,28146.0,5.95950201]
[1680736939260,0.79311309,28147.0,28146.0,6.11378092]
[1680736939901,0.79311309,28147.0,28146.0,6.08076431]
[1680736940340,0.79311309,28147.0,28146.0,5.92174201]
[1680736940983,0.79311309,28147.0,28146.0,5.74410201]
[1680736941196,0.79311309,28147.0,28146.0,5.88393201]
[1680736942999,0.79311309,28147.0,28146.0,5.88411201]
[1680736943205,0.79311309,28147.0,28146.0,5.88393201]
[1680736943411,0.80411309,28147.0,28146.0,5.88393201]
[1680736943975,0.80411309,28147.0,28146.0,6.03821092]
[1680736944868,0.80411309,28147.0,28146.0,6.11371092]
[1680736945311,0.80411309,28147.0,28146.0,6.31053322]
[1680736946164,0.80411309,28147.0,28146.0,6.27270322]
[1680736948863,0.80411309,28147.0,28146.0,6.09510322]
[1680736949293,0.81511309,28147.0,28146.0,6.27270322]
[1680736950505,0.81511309,28147.0,28146.0,6.09510322]
[1680736950707,0.81511309,28147.0,28146.0,6.27270322]
[1680736951338,0.81511309,28147.0,28146.0,6.31050322]
[1680736951888,0.81511309,28147.0,28146.0,6.13290322]
[1680736952225,0.81511309,28147.0,28146.0,6.31050322]
[1680736953257,0.81511309,28147.0,28146.0,6.02407413]
[1680736954350,0.81505309,28147.0,28146.0,6.02413413]
[1680736954569,0.81493309,28147.0,28146.0,6.02425413]
[1680736954787,0.82593309,28147.0,28146.0,6.02424413]
[1680736954973,0.82593309,28147.0,28146.0,5.84665413]
[1680736955903,0.82593309,28147.0,28146.0,5.69237522]
[1680736956896,0.82611309,28147.0,28146.0,5.69237522]
[1680736957086,0.82611309,28147.0,28146.0,5.84665413]
[1680736957291,0.82593309,28147.0,28146.0,5.84665413]
[1680736958759,0.82611309,28147.0,28146.0,5.84665413]
[1680736958976,0.82593309,28147.0,28146.0,5.84665413]
[1680736960434,0.83693309,28147.0,28146.0,5.84665413]
[1680736962303,0.83711309,28147.0,28146.0,5.84665413]
[1680736962954,0.83693309,28147.0,28146.0,5.84665413]
[1680736966468,0.84793309,28147.0,28146.0,5.84665413]
[1680736967838,0.84811309,28147.0,28146.0,5.69131759]
[1680736968036,0.84811309,28147.0,28146.0,5.86889759]
[1680736968234,0.84811309,28147.0,28146.0,5.69131759]
[1680736969222,0.84811309,28147.0,28146.0,5.8455965]
[1680736971880,0.84811309,28147.0,28146.0,6.0231865]
[1680736972173,0.85911309,28147.0,28146.0,5.9951865]
[1680736972401,0.85911309,28147.0,28146.0,6.0231865]
[1680736973100,0.85911309,28147.0,28146.0,5.8455965]
[1680736973304,0.85911309,28147.0,28146.0,6.0231865]
[1680736973586,0.82503019,28147.0,28146.0,6.10966405]
[1680736973793,0.82503019,28147.0,28146.0,6.14746405]
[1680736973999,0.44078229,28147.0,28146.0,6.14746405]
[1680736974216,0.22697503,28147.0,28146.0,6.14746405]
[1680736974425,0.055,28147.0,28146.0,6.14746405]
[1680736974652,0.04917503,28147.0,28146.0,6.14728405]
[1680736974858,0.02405001,28152.0,28151.0,0.13556]
[1680736975070,0.02405001,28152.0,28151.0,4.61398656]
[1680736975304,0.02405001,28152.0,28151.0,5.34024219]
[1680736975512,0.02405001,28152.0,28151.0,5.69554219]
[1680736975728,0.02405001,28152.0,28151.0,5.85535656]
[1680736976818,0.02387001,28152.0,28151.0,5.85535656]
[1680736977030,0.02387001,28152.0,28151.0,5.88335656]
[1680736977862,0.03487001,28152.0,28151.0,5.88335656]
[1680736980057,0.03487001,28152.0,28151.0,6.23445777]
[1680736980270,0.03487001,28152.0,28151.0,6.05688777]
[1680736980469,0.02987001,28152.0,28151.0,6.05688777]
[1680736981511,0.02987001,28152.0,28151.0,5.86006547]
[1680736982364,0.02387001,28153.0,28151.0,5.86006547]
[1680736982365,0.02387001,28153.0,28151.0,6.05688777]
[1680736982580,0.08426127,28155.0,28154.0,1.957368]
[1680736982795,0.08426127,28155.0,28154.0,7.03857896]
[1680736983012,0.08426127,28155.0,28154.0,6.91535747]
[1680736983259,0.08426127,28155.0,28154.0,7.2884131]
[1680736983473,0.08426127,28155.0,28154.0,7.4939331]
[1680736983685,0.09526127,28155.0,28154.0,7.47617747]
[1680736983893,0.09526127,28155.0,28154.0,7.47635747]
[1680736984102,0.06026127,28155.0,28154.0,7.47617747]
[1680736984524,0.02526127,28155.0,28154.0,7.4939331]
[1680736984725,0.02526127,28155.0,28154.0,7.4941131]
[1680736984931,0.02526127,28155.0,28154.0,7.4939331]
[1680736985344,0.07826127,28156.0,28155.0,0.369709]
[1680736985543,0.07826127,28156.0,28155.0,4.25981956]
[1680736985747,0.07826127,28156.0,28155.0,4.27757519]
[1680736985965,0.02582514,28156.0,28155.0,4.7871541]
[1680736986384,0.02582514,28156.0,28155.0,5.4871541]
[1680736986595,0.02582514,28156.0,28155.0,5.5151541]
[1680736987455,0.002332,28158.0,28157.0,1.955571]
[1680736987663,0.002332,28158.0,28157.0,7.09619377]
[1680736987874,0.002332,28158.0,28157.0,7.1139494]
[1680736988077,0.002332,28158.0,28157.0,7.1141294]
[1680736988288,0.002332,28158.0,28157.0,7.4694294]
[1680736988713,0.002332,28158.0,28157.0,7.4974294]
[1680736989149,0.002332,28158.0,28157.0,7.4972494]
[1680736989546,0.013332,28158.0,28157.0,7.4972494]
[1680736990255,0.013332,28158.0,28157.0,7.12253719]
[1680736991266,0.013332,28158.0,28157.0,7.65122226]
[1680736992160,0.013332,28158.0,28157.0,7.62322226]
[1680736992367,0.013332,28158.0,28157.0,7.82873226]
[1680736992574,0.013332,28158.0,28157.0,7.80073226]
[1680736992783,0.013332,28158.0,28157.0,7.82873226]
[1680736993197,0.013332,28158.0,28157.0,7.67445335]
[1680736993434,0.013332,28158.0,28157.0,7.76089582]
[1680736993641,0.011,28163.0,28162.0,1.957361]
[1680736993867,0.10105001,28164.0,28163.0,0.13544]
[1680736993868,0.10087001,28164.0,28163.0,0.13544]
[1680736994055,0.10087001,28164.0,28163.0,1.21239337]
[1680736994308,0.10087001,28164.0,28163.0,1.07049656]
[1680736994530,0.10087001,28164.0,28163.0,1.44355219]
[1680736994797,0.10087001,28164.0,28163.0,2.14355219]
[1680736995231,0.11187001,28164.0,28163.0,2.3969643]
[1680736995444,0.11187001,28164.0,28163.0,2.4249643]
[1680736995854,0.11187001,28164.0,28163.0,2.4364643]
[1680736996112,0.11187001,28164.0,28163.0,2.59073485]
[1680736996963,0.11187001,28164.0,28163.0,2.76823485]
[1680736998838,0.11187001,28164.0,28163.0,2.80426155]
[1680736999257,0.11187001,28164.0,28163.0,2.55102944]
[1680737000931,0.12287001,28164.0,28163.0,2.55102944]
[1680737001347,0.12287001,28164.0,28163.0,2.55100944]
[1680737005436,0.12287001,28164.0,28163.0,2.55101944]
[1680737006676,0.13387001,28164.0,28163.0,2.55101944]
[1680737008737,0.13387001,28164.0,28163.0,2.37352944]
[1680737008944,0.13387001,28164.0,28163.0,2.55100944]
[1680737010046,0.13387001,28164.0,28163.0,2.58880944]
[1680737011065,0.13387001,28164.0,28163.0,2.29715889]
[1680737011291,0.13387001,28164.0,28163.0,2.48951127]
[1680737011494,0.13387001,28164.0,28163.0,2.47020897]
[1680737012354,0.14487001,28164.0,28163.0,2.62447952]
[1680737013670,0.14487001,28164.0,28163.0,2.62459946]
[1680737013822,0.14487001,28164.0,28163.0,2.62458946]
[1680737014049,0.14487001,28164.0,28163.0,2.44707946]
[1680737014238,0.14487001,28164.0,28163.0,2.41365944]
[1680737015328,0.14487001,28164.0,28163.0,2.44708163]
[1680737015561,0.14487001,28164.0,28163.0,2.23614944]
[1680737017199,0.14487001,28164.0,28163.0,2.41365944]
[1680737018106,0.15587001,28164.0,28163.0,2.25938889]
[1680737019644,0.15587001,28164.0,28163.0,2.512621]
[1680737020019,0.15587001,28164.0,28163.0,2.66689155]
[1680737020241,0.15587001,28164.0,28163.0,2.86371385]
[1680737020445,0.15587001,28164.0,28163.0,2.68620385]
[1680737020655,0.15587001,28164.0,28163.0,2.86371385]
[1680737021647,0.15587001,28164.0,28163.0,2.61048174]
[1680737021845,0.15587001,28164.0,28163.0,2.43297174]
[1680737022056,0.15587001,28164.0,28163.0,2.61048174]
[1680737024009,0.16687001,28164.0,28163.0,2.27870119]
[1680737024219,0.16687001,28164.0,28163.0,2.61048174]
[1680737024432,0.16687001,28164.0,28163.0,2.43297174]
[1680737024648,0.16687001,28164.0,28163.0,2.61048174]
[1680737025523,0.16687001,28164.0,28163.0,2.98461987]
[1680737025903,0.16687001,28164.0,28163.0,2.80710987]
[1680737026110,0.16687001,28164.0,28163.0,2.78779757]
[1680737026753,0.16687001,28164.0,28163.0,2.75177087]
[1680737027170,0.16687001,28164.0,28163.0,2.57426087]
[1680737027379,0.16687001,28164.0,28163.0,2.75177087]
[1680737027873,0.16687001,28164.0,28163.0,2.75263713]
[1680737028085,0.16687001,28164.0,28163.0,2.37763274]
[1680737028939,0.16687001,28164.0,28163.0,2.20012274]
[1680737029146,0.16687001,28164.0,28163.0,2.37763274]
[1680737029349,0.16687001,28164.0,28163.0,2.20012274]
[1680737029555,0.17787001,28164.0,28163.0,2.37763274]
[1680737031071,0.17787001,28164.0,28163.0,2.37762274]
[1680737033228,0.17787001,28164.0,28163.0,2.04585219]
[1680737033437,0.17787001,28164.0,28163.0,2.08100548]
[1680737033650,0.17787001,28164.0,28163.0,2.25851548]
[1680737033870,0.17787001,28164.0,28163.0,2.41278603]
[1680737035381,0.18887001,28164.0,28163.0,2.81277603]
[1680737036473,0.18887001,28164.0,28163.0,2.85057603]
[1680737037308,0.18887001,28164.0,28163.0,2.85058603]
[1680737038110,0.18887001,28164.0,28163.0,3.04740833]
[1680737038936,0.18887001,28164.0,28163.0,3.08520833]
[1680737039311,0.18887001,28164.0,28163.0,2.93093778]
[1680737040016,0.18887001,28164.0,28163.0,3.21693818]
[1680737040186,0.18887001,28164.0,28163.0,3.18893818]
[1680737040391,0.18887001,28164.0,28163.0,3.34317873]
[1680737040597,0.18887001,28164.0,28163.0,3.37117873]
[1680737041137,0.19987001,28164.0,28163.0,3.37117873]
[1680737042531,0.19987001,28164.0,28163.0,3.13655643]
[1680737043826,0.16415728,28164.0,28163.0,3.13655643]
[1680737044030,0.16415728,28164.0,28163.0,3.10837643]
[1680737044462,0.16415728,28164.0,28163.0,3.13637643]
[1680737044896,0.26415728,28164.0,28163.0,3.13637643]
[1680737045101,0.26415728,28164.0,28163.0,3.17425643]
[1680737046236,0.22845728,28164.0,28163.0,3.17425643]
[1680737046834,0.23945728,28164.0,28163.0,3.17425643]
[1680737047225,0.23945728,28164.0,28163.0,3.17426643]
[1680737048108,0.23945728,28164.0,28163.0,2.88826603]
[1680737048462,0.23945728,28164.0,28163.0,3.17426643]
[1680737049093,0.22839152,28164.0,28163.0,3.17426643]
[1680737049275,0.21778227,28164.0,28163.0,2.99677643]
[1680737049481,0.21778227,28164.0,28163.0,3.17426643]
[1680737052003,0.21778227,28164.0,28163.0,2.88826603]
[1680737052214,0.21778227,28164.0,28163.0,2.71077603]
[1680737052457,0.21778227,28164.0,28163.0,2.88827603]
[1680737052652,0.22878227,28164.0,28163.0,2.88827603]
[1680737052862,0.22878227,28164.0,28163.0,3.17427643]
[1680737053284,0.22878227,28164.0,28163.0,2.88827603]
[1680737053555,0.22878227,28164.0,28163.0,3.17427643]
[1680737054189,0.22878227,28164.0,28163.0,2.88827603]
[1680737055879,0.22878227,28164.0,28163.0,2.87677603]
[1680737056705,0.22896227,28164.0,28163.0,2.66319603]
[1680737056914,0.22878227,28164.0,28163.0,2.87677603]
[1680737057333,0.22896227,28164.0,28163.0,2.66139603]
[1680737057558,0.22896227,28164.0,28163.0,2.83890603]
[1680737058403,0.22936423,28164.0,28163.0,2.83908603]
[1680737058874,0.22936423,28164.0,28163.0,2.88188603]
[1680737059082,0.22936423,28164.0,28163.0,3.07870833]
[1680737059491,0.22936423,28164.0,28163.0,3.36470873]
[1680737060267,0.22936423,28164.0,28163.0,3.36469873]
[1680737061251,0.22936423,28164.0,28163.0,3.40239873]
[1680737062091,0.22936423,28164.0,28163.0,3.11639833]
[1680737063157,0.22936423,28164.0,28163.0,2.93889833]
[1680737063777,0.22936423,28164.0,28163.0,3.11639833]
[1680737063984,0.22936423,28164.0,28163.0,2.96212778]
[1680737064192,0.24036423,28164.0,28163.0,2.96212778]
[1680737064400,0.24036423,28164.0,28163.0,3.11639833]
[1680737065225,0.24036423,28164.0,28163.0,2.93889833]
[1680737065472,0.24036423,28164.0,28163.0,3.11639833]
[1680737066460,0.24036423,28164.0,28163.0,2.88177603]
[1680737067274,0.24036423,28164.0,28163.0,2.72750548]
[1680737067557,0.24036423,28164.0,28163.0,3.01350588]
[1680737068381,0.24036423,28164.0,28163.0,2.83600588]
[1680737068556,0.24036423,28164.0,28163.0,3.01350588]
[1680737068975,0.24036423,28164.0,28163.0,2.72750548]
[1680737069501,0.24036423,28164.0,28163.0,3.01350588]
[1680737069967,0.25136423,28164.0,28163.0,2.83600588]
[1680737070164,0.25136423,28164.0,28163.0,3.16777643]
[1680737071002,0.25136423,28164.0,28163.0,2.99027643]
[1680737071212,0.25136423,28164.0,28163.0,3.16777643]
[1680737072095,0.25136423,28164.0,28163.0,2.88177603]
[1680737072298,0.25136423,28164.0,28163.0,3.16777643]
[1680737075014,0.25136423,28164.0,28163.0,3.16776643]
[1680737075440,0.25136423,28164.0,28163.0,2.99027643]
[1680737075667,0.26236423,28164.0,28163.0,2.99027643]
[1680737075889,0.26236423,28164.0,28163.0,3.16776643]
[1680737076098,0.26236423,28164.0,28163.0,3.01349588]
[1680737076302,0.26236423,28164.0,28163.0,3.01350588]
[1680737076971,0.26236423,28164.0,28163.0,2.99575025]
[1680737077117,0.26236423,28164.0,28163.0,2.81825025]
[1680737078217,0.26248423,28164.0,28163.0,2.81825025]
[1680737078423,0.26254423,28164.0,28163.0,2.81825025]
[1680737079503,0.26236423,28164.0,28163.0,2.81825025]
[1680737080820,0.26236423,28164.0,28163.0,2.99574025]
[1680737081034,0.26236423,28164.0,28163.0,3.05257255]
[1680737081249,0.26236423,28164.0,28163.0,2.76657215]
[1680737081475,0.27336423,28164.0,28163.0,2.76657215]
[1680737081661,0.27336423,28164.0,28163.0,2.94404215]
[1680737082098,0.27336423,28164.0,28163.0,2.76657215]
[1680737082296,0.27336423,28164.0,28163.0,2.91604215]
[1680737082506,0.27336423,28164.0,28163.0,2.94404215]
[1680737083127,0.27336423,28164.0,28163.0,2.96179778]
[1680737083992,0.27336423,28164.0,28163.0,3.11606833]
[1680737084211,0.27336423,28164.0,28163.0,3.11607833]
[1680737084441,0.11,28171.0,28170.0,1.9]
[1680737084653,0.11,28171.0,28170.0,2.97759737]
[1680737084858,0.11018,28171.0,28170.0,4.03289737]
[1680737085064,0.11018,28171.0,28170.0,3.89100056]
[1680737085488,0.11018,28171.0,28170.0,4.20215619]
[1680737085913,0.11,28171.0,28170.0,4.20215619]
[1680737086969,0.11,28171.0,28170.0,4.23015619]
[1680737087183,0.121,28171.0,28170.0,4.23015619]
[1680737087391,0.12118,28171.0,28170.0,4.20215619]
[1680737087609,0.12118,28171.0,28170.0,4.23015619]
[1680737088055,0.12118,28171.0,28170.0,4.23014619]
[1680737088242,0.12118,28171.0,28170.0,4.19234619]
[1680737088907,0.12118,28171.0,28170.0,4.01490619]
[1680737090391,0.121,28171.0,28170.0,4.01508619]
[1680737090589,0.121,28171.0,28170.0,4.19253619]
[1680737090799,0.12118,28171.0,28170.0,4.19235619]
[1680737091012,0.121,28171.0,28170.0,4.19235619]
[1680737091218,0.121,28171.0,28170.0,4.23015619]
[1680737091454,0.121,28171.0,28170.0,4.38442674]
[1680737092052,0.121,28171.0,28170.0,4.23015619]
[1680737092886,0.132,28171.0,28170.0,4.38442674]
[1680737093314,0.06074799,28171.0,28170.0,4.38442674]
[1680737095434,0.16074799,28171.0,28170.0,4.38442674]
[1680737095636,0.16074799,28171.0,28170.0,4.38460674]
[1680737096261,0.16074799,28171.0,28170.0,4.20715674]
[1680737096480,0.02405001,28172.0,28170.0,4.38457674]
[1680737096678,0.02405001,28172.0,28171.0,1.07084656]
[1680737096679,0.02387001,28172.0,28171.0,1.07084656]
[1680737096902,0.02387001,28172.0,28171.0,2.12614656]
[1680737097111,0.02387001,28172.0,28171.0,2.29817274]
[1680737097318,0.02387001,28172.0,28171.0,2.47559274]
[1680737097521,0.02387001,28172.0,28171.0,2.47571274]
[1680737097749,0.02387001,28172.0,28171.0,2.47559274]
[1680737098167,0.02387001,28172.0,28171.0,2.29817274]
[1680737098319,0.02387001,28172.0,28171.0,2.47559274]
[1680737098728,0.03487001,28172.0,28171.0,2.52819274]
[1680737099166,0.03487001,28172.0,28171.0,2.55619274]
[1680737100323,0.05743006,28173.0,28172.0,0.34896]
[1680737100464,0.05743006,28173.0,28172.0,1.80957256]
[1680737100694,0.05743006,28173.0,28172.0,2.33689874]
[1680737101441,0.022,28174.0,28172.0,2.33689874]
[1680737101442,0.01427154,28174.0,28173.0,2.03556]
[1680737101650,0.02741634,28176.0,28174.0,0.34896]
[1680737101856,0.02741634,28176.0,28175.0,0.96309156]
[1680737102065,0.02741634,28176.0,28175.0,1.12586211]
[1680737102288,0.02387001,28178.0,28177.0,1.77012]
[1680737102493,0.02387001,28178.0,28177.0,2.47113056]
[1680737102703,0.02387001,28178.0,28177.0,4.45829357]
[1680737102910,0.02387001,28178.0,28177.0,4.50759357]
[1680737103736,0.02387001,28178.0,28177.0,4.69936412]
[1680737103940,0.02387001,28178.0,28177.0,4.35286674]
[1680737104436,0.03487001,28178.0,28177.0,4.35286674]
[1680737105021,0.03481001,28178.0,28177.0,4.35286674]
[1680737108331,0.03481001,28178.0,28177.0,4.35285674]
[1680737108974,0.03481001,28178.0,28177.0,4.60608481]
[1680737109185,0.03481001,28178.0,28177.0,4.60608489]
[1680737109394,0.03481001,28178.0,28177.0,4.56859489]
[1680737109807,0.03481001,28178.0,28177.0,4.60879284]
[1680737110023,0.04581001,28178.0,28177.0,4.60879284]
[1680737110236,0.04581001,28178.0,28177.0,4.20128903]
[1680737110437,0.04581001,28178.0,28177.0,4.45444018]
[1680737111077,0.04581001,28178.0,28177.0,3.73137056]
[1680737111286,0.08361001,28178.0,28177.0,3.02287056]
[1680737111523,0.15773201,28178.0,28177.0,1.20934995]
[1680737111747,0.56981201,28178.0,28177.0,1.20934995]
[1680737111959,0.56981201,28178.0,28177.0,0.028]